bitfinex/quotes_SOLUSD_20250806
["timestamp","ask_amount","ask_price","bid_price","bid_amount"]
[1754481049114,15.10621557,164.23,164.2,0.2]
[1754481049317,5.5711789,164.21,164.2,0.2]
[1754481049513,14.22256668,164.21,164.2,0.2]
[1754481052026,9.66532784,164.21,164.2,0.2]
[1754481052325,14.21858467,164.21,164.2,0.2]
[1754481053322,20.30834777,164.21,164.2,0.2]
[1754481053619,50.90740577,164.21,164.2,0.2]
[1754481055225,50.90518566,164.21,164.2,0.2]
[1754481055440,8.64518566,164.21,164.2,0.2]
[1754481055722,46.81103672,164.21,164.2,0.2]
[1754481055920,50.90518566,164.21,164.2,0.2]
[1754481056703,46.81103672,164.21,164.2,11.86131288]
[1754481060327,4.55103672,164.21,164.2,11.86131288]
[1754481060515,14.11274558,164.26,164.2,113.25782673]
[1754481060516,4.09560152,164.25,164.2,113.25782673]
[1754481060721,46.85031262,164.24,164.2,107.68664783]
[1754481060935,42.3,164.24,164.23,5.5711789]
[1754481061116,4.55007581,164.24,164.23,5.5711789]
[1754481061806,42.3,164.25,164.23,5.5711789]
[1754481062008,42.3,164.25,164.24,5.5711789]
[1754481062406,42.3,164.25,164.24,11.65982965]
[1754481062734,42.3,164.25,164.21,6.0897631]
[1754481062933,42.3,164.25,164.24,5.5711789]
[1754481063246,46.39539317,164.25,164.24,5.5711789]
[1754481064309,46.39539317,164.25,164.23,5.5711789]
[1754481064506,42.3,164.25,164.23,5.5711789]
[1754481065036,42.3,164.25,164.24,5.5711789]
[1754481065237,46.39538229,164.25,164.24,5.5711789]
[1754481065836,42.3,164.25,164.24,11.65982965]
[1754481066426,42.3,164.25,164.24,6.08865075]
[1754481066728,42.3,164.25,164.24,11.65982965]
[1754481068719,46.39562005,164.25,164.24,11.65982965]
[1754481069017,42.3,164.25,164.24,11.65982965]
[1754481069236,46.39562005,164.25,164.24,11.65982965]
[1754481072914,42.3,164.25,164.24,11.65982965]
[1754481073235,46.39561499,164.25,164.24,11.65982965]
[1754481073443,46.39561499,164.25,164.24,5.5711789]
[1754481073646,46.42561499,164.25,164.23,0.06]
[1754481073818,4.09561499,164.24,164.23,0.06]
[1754481076625,15.75544464,164.24,164.23,0.06]
[1754481078438,10.18426574,164.24,164.23,0.06]
[1754481078619,15.75544464,164.24,164.23,0.06]
[1754481081955,10.18426574,164.24,164.23,0.06]
[1754481082257,15.75544464,164.24,164.23,0.06]
[1754481083254,58.03544464,164.24,164.23,0.06]
[1754481085436,65.60022345,164.24,164.23,0.06]
[1754481086352,80.70643902,164.24,164.23,0.06]
[1754481086545,26.0,164.22,164.21,0.06]
[1754481086742,77.94679389,164.22,164.21,0.06]
[1754481086950,83.06945452,164.22,164.21,0.06]
[1754481089160,89.15884679,164.22,164.21,0.06]
[1754481089459,89.17884679,164.22,164.21,0.06]
[1754481090038,84.05618616,164.22,164.21,0.06]
[1754481090240,86.49751816,164.22,164.21,0.06]
[1754481090657,44.19751816,164.22,164.21,0.06]
[1754481090966,86.47751816,164.22,164.21,0.06]
[1754481092962,44.19751816,164.22,164.21,0.06]
[1754481093342,86.47751816,164.22,164.21,0.06]
[1754481096068,4.09561499,164.22,164.21,0.06]
[1754481096274,42.28,164.22,164.21,0.06]
[1754481096567,46.37561499,164.22,164.21,0.06]
[1754481097664,4.09561499,164.22,164.21,0.06]
[1754481097874,46.39561499,164.22,164.21,5.6311789]
[1754481098468,46.39561499,164.22,164.21,0.06]
[1754481101457,46.39561499,164.22,164.21,5.6311789]
[1754481101765,46.37561499,164.22,164.21,5.6311789]
[1754481102975,46.39561499,164.22,164.21,5.6311789]
[1754481103267,4.09561499,164.22,164.21,5.6311789]
[1754481103474,4.09561499,164.23,164.21,5.6311789]
[1754481103769,46.37561499,164.22,164.21,5.6311789]
[1754481105578,4.09561499,164.22,164.21,5.6311789]
[1754481105769,42.28,164.22,164.21,5.6311789]
[1754481105971,46.37561499,164.22,164.21,5.6311789]
[1754481106280,4.09561499,164.22,164.21,5.6311789]
[1754481106483,42.28,164.22,164.21,5.6311789]
[1754481106684,46.37561499,164.22,164.21,5.6311789]
[1754481106981,46.37561499,164.22,164.21,0.06]
[1754481107473,51.94679389,164.22,164.21,0.06]
[1754481107980,58.03618616,164.22,164.21,0.06]
[1754481109071,60.47736916,164.22,164.21,0.06]
[1754481109389,75.58358473,164.22,164.2,0.2]
[1754481109569,40.79013993,164.21,164.2,0.2]
[1754481110149,14.79013993,164.21,164.2,0.2]
[1754481110951,20.87990303,164.21,164.2,0.2]
[1754481113852,15.30872413,164.21,164.2,0.2]
[1754481114051,20.87990303,164.21,164.2,0.2]
[1754481114973,15.75655699,164.21,164.2,0.2]
[1754481115164,58.09655699,164.21,164.2,0.2]
[1754481115354,63.21990303,164.21,164.2,0.2]
[1754481116680,74.88297803,164.21,164.2,0.2]
[1754481117366,63.21990303,164.21,164.2,0.2]
[1754481117675,74.88297803,164.21,164.2,0.2]
[1754481118773,63.21990303,164.21,164.2,0.2]
[1754481120977,63.23194057,164.21,164.2,0.2]
[1754481121472,74.89501457,164.21,164.2,0.2]
[1754481123394,95.76668203,164.21,164.2,0.2]
[1754481123569,89.23299701,164.21,164.2,0.2]
[1754481124380,95.32455801,164.21,164.2,0.2]
[1754481124981,52.98455801,164.21,164.2,0.2]
[1754481125164,95.30455801,164.21,164.2,0.2]
[1754481126684,89.21299701,164.21,164.2,0.2]
[1754481127687,9.23205501,164.21,164.2,0.2]
[1754481128000,51.99384493,164.21,164.2,0.2]
[1754481129165,46.42266603,164.21,164.2,0.2]
[1754481129477,51.99384493,164.21,164.2,0.2]
[1754481131795,58.08360803,164.21,164.2,0.2]
[1754481132883,63.21299701,164.21,164.2,0.2]
[1754481133295,57.12323391,164.21,164.2,0.2]
[1754481133796,51.99384493,164.21,164.2,0.2]
[1754481134292,46.40266603,164.21,164.2,5.7711789]
[1754481138697,46.40266603,164.21,164.2,0.2]
[1754481139796,46.43266603,164.21,164.2,0.2]
[1754481140685,58.09360803,164.21,164.2,0.2]
[1754481140891,63.22299701,164.21,164.2,0.2]
[1754481141397,78.32921258,164.21,164.2,0.2]
[1754481141703,11.6616838,164.19,164.18,0.2]
[1754481141868,63.21514792,164.19,164.18,0.2]
[1754481145476,73.1905654,164.19,164.18,0.2]
[1754481146274,78.32027169,164.19,164.18,0.2]
[1754481146495,73.1905654,164.19,164.18,0.2]
[1754481147204,78.32016936,164.19,164.18,0.2]
[1754481147403,73.1905654,164.19,164.18,0.2]
[1754481148999,26.0,164.16,164.1,80.6]
[1754481149175,5.5711789,164.14,164.09,5.5711789]
[1754481149374,52.03384493,164.13,164.08,11.66563495]
[1754481149578,4.10266603,164.12,164.08,11.66563495]
[1754481149784,47.9311789,164.13,164.08,11.66563495]
[1754481149785,42.36,164.11,164.08,5.5711789]
[1754481149981,42.36,164.1,164.07,5.5711789]
[1754481150306,42.36,164.09,164.07,5.5711789]
[1754481151107,42.36,164.09,164.08,5.5711789]
[1754481151600,42.36,164.09,164.07,11.66603196]
[1754481152487,42.36,164.09,164.07,6.09485306]
[1754481152686,42.36,164.09,164.07,11.66603196]
[1754481153710,42.36,164.09,164.08,5.5711789]
[1754481154085,6.09240164,164.14,164.08,5.5711789]
[1754481154283,46.46127728,164.13,164.1,5.5711789]
[1754481154595,4.10127728,164.12,164.09,5.5711789]
[1754481154790,42.38,164.11,164.09,5.5711789]
[1754481155096,42.38,164.1,164.09,5.5711789]
[1754481158698,5.5711789,164.13,164.08,11.66552716]
[1754481159007,42.36,164.12,164.11,5.5711789]
[1754481159412,42.36,164.12,164.1,5.5711789]
[1754481159813,42.36,164.12,164.1,11.66500773]
[1754481160688,42.36,164.12,164.11,5.5711789]
[1754481161204,42.36,164.12,164.1,86.69382883]
[1754481161606,42.36,164.12,164.1,92.26500773]
[1754481161811,42.36,164.12,164.1,86.69382883]
[1754481162115,42.36,164.12,164.1,92.26500773]
[1754481165298,42.36,164.12,164.11,5.5711789]
[1754481166819,42.36,164.12,164.11,11.66465278]
[1754481167407,42.36,164.12,164.11,6.09347388]
[1754481167619,42.36,164.12,164.11,11.66465278]
[1754481174698,42.36,164.12,164.11,9.66249064]
[1754481177608,42.36,164.12,164.11,90.26249064]
[1754481177927,42.34,164.15,164.11,90.26249064]
[1754481178094,42.34,164.15,164.14,3.56901676]
[1754481182127,46.44177143,164.15,164.14,3.56901676]
[1754481184732,46.44177143,164.15,164.12,6.0931026]
[1754481184911,42.34,164.15,164.14,3.56901676]
[1754481185112,46.44529479,164.15,164.14,3.56901676]
[1754481185819,56.10636684,164.15,164.11,80.66]
[1754481186025,4.10529479,164.14,164.11,84.22901676]
[1754481186329,4.10529479,164.13,164.11,3.62901676]
[1754481186530,42.32,164.12,164.11,0.06]
[1754481186724,42.32,164.12,164.11,3.62901676]
[1754481187050,42.32,164.12,164.11,9.72249064]
[1754481187232,42.32,164.12,164.11,3.62901676]
[1754481188156,42.32,164.12,164.11,9.72249064]
[1754481189136,46.42966433,164.12,164.11,9.72249064]
[1754481189937,4.10966433,164.12,164.11,9.72249064]
[1754481190108,46.42966433,164.12,164.11,9.72249064]
[1754481193447,46.42966433,164.12,164.11,6.15347388]
[1754481193655,46.42966433,164.12,164.11,3.62901676]
[1754481194441,46.43029456,164.12,164.11,3.62901676]
[1754481200051,46.43029456,164.12,164.11,9.72249064]
[1754481202758,46.43029456,164.12,164.11,3.62901676]
[1754481204149,46.43029456,164.12,164.11,9.72249064]
[1754481219682,46.43029456,164.12,164.11,3.62901676]
[1754481221367,46.43029456,164.12,164.11,0.06]
[1754481221667,46.43029456,164.12,164.11,3.62901676]
[1754481229946,42.32,164.12,164.11,3.62901676]
[1754481230151,46.43344417,164.12,164.11,3.62901676]
[1754481238494,46.43344417,164.12,164.11,0.06]
[1754481245097,46.43344417,164.12,164.11,3.62901676]
[1754481246245,4.11344417,164.12,164.11,9.72249064]
[1754481246531,46.39344417,164.12,164.11,9.72249064]
[1754481246827,4.11344417,164.12,164.11,131.42870621]
[1754481247126,42.28,164.15,164.11,146.66239093]
[1754481247321,42.28,164.15,164.14,3.56901676]
[1754481247920,42.28,164.15,164.14,29.56901676]
[1754481248507,42.28,164.15,164.14,35.66137694]
[1754481250229,0.03,164.18,164.14,9.66137694]
[1754481250532,46.38698345,164.17,164.15,6.09198075]
[1754481250749,42.28,164.17,164.16,3.56901676]
[1754481250898,46.3861905,164.17,164.16,3.56901676]
[1754481252022,4.1061905,164.17,164.16,3.56901676]
[1754481252231,46.3861905,164.17,164.16,3.56901676]
[1754481252713,0.03,164.18,164.16,9.66063469]
[1754481253025,0.03,164.18,164.17,3.56901676]
[1754481254333,11.29102597,164.19,164.18,41.10621557]
[1754481254533,11.29102597,164.19,164.18,50.76610819]
[1754481254735,0.03,164.2,164.18,50.76610819]
[1754481254916,0.03,164.2,164.19,17.8450838]
[1754481255409,0.03,164.21,164.19,17.8450838]
[1754481255610,0.03,164.21,164.2,17.8450838]
[1754481257125,0.03,164.21,164.2,23.93521778]
[1754481258138,0.03,164.23,164.22,26.0]
[1754481258345,0.03,164.23,164.22,29.56901676]
[1754481259228,0.03,164.23,164.22,35.65840903]
[1754481260442,0.03,164.23,164.22,50.7646246]
[1754481261453,0.03,164.24,164.22,50.7646246]
[1754481261454,0.03,164.24,164.23,15.10621557]
[1754481261759,0.03,164.24,164.23,18.67523233]
[1754481261919,42.29,164.29,164.23,18.67523233]
[1754481262249,42.29,164.29,164.24,3.56901676]
[1754481263325,42.29,164.29,164.24,9.65766751]
[1754481264430,45.85901676,164.29,164.24,9.65766751]
[1754481264627,47.85731306,164.29,164.24,11.65596381]
[1754481264842,42.29,164.29,164.24,11.65596381]
[1754481269545,47.85731306,164.29,164.24,11.65596381]
[1754481270255,5.56731306,164.28,164.24,92.25596381]
[1754481270760,5.56731306,164.28,164.24,86.16731306]
[1754481271332,42.29,164.29,164.24,92.25596381]
[1754481273058,42.29,164.29,164.24,107.36217938]
[1754481273560,42.29,164.29,164.24,92.25596381]
[1754481294344,4.09188542,164.28,164.24,92.25596381]
[1754481295171,4.5791361,164.25,164.24,92.25596381]
[1754481295342,0.03,164.25,164.24,92.25596381]
[1754481296242,4.58264617,164.25,164.24,86.68865075]
[1754481297067,4.58264617,164.25,164.24,92.25596381]
[1754481297654,0.03,164.25,164.24,92.25596381]
[1754481300659,4.13755257,164.25,164.24,92.25596381]
[1754481301041,4.13755257,164.25,164.24,80.6]
[1754481302857,4.13755257,164.25,164.24,92.25596381]
[1754481303650,4.13755257,164.25,164.24,86.68865075]
[1754481304456,4.13755257,164.25,164.23,80.6]
[1754481304660,4.10755257,164.24,164.23,80.6]
[1754481304978,9.67486563,164.24,164.22,0.06]
[1754481305178,51.91486563,164.23,164.22,0.06]
[1754481306686,63.10746922,164.23,164.22,0.06]
[1754481306982,58.00388712,164.23,164.16,6.15161793]
[1754481307200,5.56731306,164.19,164.16,0.06]
[1754481307394,4.10755257,164.18,164.16,0.06]
[1754481307787,4.10755257,164.21,164.17,5.56731306]
[1754481308098,5.56731306,164.22,164.18,5.56731306]
[1754481308099,4.10755257,164.2,164.18,5.56731306]
[1754481308281,4.10755257,164.21,164.18,5.56731306]
[1754481308699,4.10755257,164.21,164.18,11.65787429]
[1754481308904,4.10755257,164.21,164.2,5.56731306]
[1754481309087,4.10755257,164.22,164.2,5.56731306]
[1754481309403,4.10755257,164.22,164.21,5.56731306]
[1754481310193,42.24,164.23,164.18,6.09056123]
[1754481310502,42.24,164.23,164.21,5.56731306]
[1754481310817,42.24,164.23,164.21,6.08967156]
[1754481311002,42.24,164.23,164.21,11.65698462]
[1754481311573,42.24,164.23,164.21,5.56731306]
[1754481311773,42.24,164.23,164.2,11.65734547]
[1754481313504,42.24,164.23,164.2,6.09003241]
[1754481313881,42.24,164.23,164.2,11.65734547]
[1754481315190,42.24,164.23,164.21,5.56731306]
[1754481315606,42.24,164.23,164.22,5.56731306]
[1754481316898,42.24,164.23,164.22,11.65670533]
[1754481318619,0.03,164.25,164.22,11.65670533]
[1754481318798,0.03,164.25,164.24,5.56731306]
[1754481319125,0.03,164.25,164.24,11.65596381]
[1754481320513,0.03,164.25,164.24,5.56731306]
[1754481320695,0.03,164.25,164.23,11.65630161]
[1754481321686,0.66,164.24,164.23,11.65630161]
[1754481322927,0.69,164.25,164.23,11.65630161]
[1754481323522,0.69,164.25,164.23,92.25630161]
[1754481324501,0.69,164.25,164.23,80.6]
[1754481324718,10.35282232,164.25,164.23,80.6]
[1754481325024,10.35282232,164.25,164.2,6.24731306]
[1754481325025,0.66,164.24,164.2,12.33737517]
[1754481326718,0.66,164.24,164.21,5.56731306]
[1754481327424,0.66,164.24,164.2,6.77006211]
[1754481327629,0.66,164.24,164.21,11.65691821]
[1754481327919,0.66,164.24,164.22,5.56731306]
[1754481328711,0.66,164.23,164.22,5.56731306]
[1754481329125,0.66,164.24,164.22,5.56731306]
[1754481330026,0.66,164.24,164.21,12.33691821]
[1754481330229,4.12578266,164.25,164.22,6.24731306]
[1754481330413,4.12578266,164.25,164.23,5.56731306]
[1754481330728,4.12578266,164.25,164.23,6.24731306]
[1754481331235,42.28,164.24,164.23,6.24731306]
[1754481332217,42.28,164.24,164.23,12.33633455]
[1754481333839,42.28,164.24,164.23,11.65633455]
[1754481335321,42.28,164.24,164.23,92.25633455]
[1754481336326,42.28,164.24,164.23,92.95633455]
[1754481336532,42.28,164.24,164.23,92.25633455]
[1754481337109,42.28,164.24,164.23,92.95633455]
[1754481337926,42.28,164.24,164.23,92.25633455]
[1754481340032,42.28,164.24,164.23,86.68902149]
[1754481340230,42.28,164.24,164.23,92.25633455]
[1754481340811,42.28,164.24,164.23,80.6]
[1754481340812,42.95,164.24,164.23,80.6]
[1754481341031,47.05054279,164.24,164.23,80.6]
[1754481341209,47.05054279,164.24,164.21,86.16731306]
[1754481341422,0.67,164.23,164.21,86.16731306]
[1754481342016,0.67,164.23,164.21,92.95704834]
[1754481342215,42.95,164.24,164.21,92.95704834]
[1754481342415,42.95,164.24,164.22,5.56731306]
[1754481342611,42.28,164.24,164.23,0.7]
[1754481342835,42.28,164.24,164.23,6.26731306]
[1754481343216,46.38133562,164.24,164.23,5.56731306]
[1754481343415,46.38133562,164.24,164.23,12.35633455]
[1754481343616,42.28,164.24,164.23,12.35633455]
[1754481343942,0.03,164.25,164.23,12.35633455]
[1754481344122,0.03,164.25,164.24,6.26731306]
[1754481344931,0.03,164.25,164.24,12.35596381]
[1754481345655,0.03,164.25,164.24,92.95596381]
[1754481348248,0.03,164.25,164.24,108.06217938]
[1754481348428,0.03,164.26,164.25,15.39053871]
[1754481348626,0.03,164.26,164.25,63.93785177]
[1754481349023,0.03,164.26,164.25,54.63559312]
[1754481349254,0.03,164.26,164.25,12.35559312]
[1754481356751,0.03,164.26,164.25,27.74613183]
[1754481358129,0.03,164.26,164.25,11.65559312]
[1754481358950,0.03,164.26,164.25,92.25559312]
[1754481359156,0.7,164.26,164.25,92.25559312]
[1754481359354,0.7,164.26,164.25,86.68828006]
[1754481359534,0.7,164.26,164.25,92.25559312]
[1754481368236,0.03,164.26,164.25,92.25559312]
[1754481370054,0.73,164.26,164.25,86.16731306]
[1754481370462,0.73,164.26,164.25,80.6]
[1754481372432,0.73,164.26,164.25,86.16731306]
[1754481372635,0.03,164.26,164.25,92.25559312]
[1754481373241,0.03,164.26,164.25,92.97559312]
[1754481373643,0.03,164.26,164.25,87.40828006]
[1754481373852,0.03,164.26,164.25,92.25559312]
[1754481375474,0.03,164.26,164.25,92.97559312]
[1754481376656,0.03,164.26,164.25,92.25559312]
[1754481377371,0.03,164.26,164.25,92.97559312]
[1754481377873,0.03,164.26,164.25,93.03559312]
[1754481384974,0.03,164.26,164.25,86.74828006]
[1754481385274,0.03,164.26,164.25,93.03559312]
[1754481388683,0.03,164.26,164.25,148.37572369]
[1754481390670,0.03,164.26,164.25,150.37854936]
[1754481391481,0.03,164.27,164.26,80.57]
[1754481391660,0.03,164.27,164.26,86.13405373]
[1754481391858,0.03,164.27,164.26,86.85405373]
[1754481393078,0.03,164.27,164.26,92.94196314]
[1754481393982,0.03,164.27,164.26,108.04817871]
[1754481398986,0.03,164.27,164.26,107.32817871]
[1754481399889,0.03,164.27,164.26,108.01817871]
[1754481400390,0.03,164.28,164.27,86.6275388]
[1754481400790,0.74,164.28,164.27,92.19159253]
[1754481401981,0.03,164.28,164.27,92.19159253]
[1754481404084,0.74,164.28,164.27,92.19159253]
[1754481405189,0.03,164.28,164.27,92.19159253]
[1754481406403,0.03,164.28,164.27,92.09159253]
[1754481407780,0.03,164.28,164.27,86.5275388]
[1754481407997,0.74,164.28,164.27,86.00405373]
[1754481408199,0.74,164.28,164.27,92.09159253]
[1754481408377,0.03,164.28,164.27,92.09159253]
[1754481410699,0.03,164.28,164.27,90.08835561]
[1754481413383,0.03,164.28,164.27,90.77835561]
[1754481420905,0.03,164.28,164.27,87.2175388]
[1754481421089,0.03,164.28,164.27,90.77835561]
[1754481431606,1e-08,164.28,164.27,106.16889432]
[1754481433223,0.03,164.3,164.29,15.10621557]
[1754481433536,0.03,164.3,164.29,60.92703238]
[1754481433705,0.03,164.3,164.29,61.61703238]
[1754481433905,0.03,164.3,164.29,75.86029962]
[1754481434510,54.36331972,164.35,164.3,26.0]
[1754481434834,53.68331972,164.35,164.34,3.56081681]
[1754481435021,57.78871842,164.35,164.34,84.0008168]
[1754481435216,58.46871842,164.35,164.34,84.0008168]
[1754481435418,58.46871842,164.35,164.34,90.08576264]
[1754481441437,54.36331972,164.35,164.34,90.08576264]
[1754481443343,54.36331972,164.35,164.34,84.0008168]
[1754481443640,58.46362942,164.35,164.34,84.0008168]
[1754481444028,58.46362942,164.35,164.34,80.43999999]
[1754481444225,54.36331972,164.35,164.34,80.43999999]
[1754481446548,54.36331972,164.35,164.34,84.0008168]
[1754481448248,54.36331972,164.35,164.34,86.52494583]
[1754481448650,54.36331972,164.35,164.34,90.08576264]
[1754481449228,53.60331972,164.35,164.34,90.77576264]
[1754481451953,11.38331972,164.35,164.34,90.77576264]
[1754481456835,11.38331972,164.35,164.34,105.88197821]
[1754481460501,0.7809,164.36,164.35,84.16289584]
[1754481460796,0.7809,164.36,164.35,72.61749708]
[1754481461380,1.4709,164.36,164.35,72.61749708]
[1754481463599,1.4709,164.36,164.35,78.70207268]
[1754481465498,1.4709,164.36,164.35,70.40207268]
[1754481465875,0.7809,164.36,164.35,70.40207268]
[1754481467699,1.4709,164.36,164.35,70.40207268]
[1754481469097,0.7809,164.36,164.35,70.40207268]
[1754481469906,0.7809,164.36,164.35,71.08207268]
[1754481470503,1.4709,164.36,164.35,70.40207268]
[1754481473105,0.7809,164.36,164.35,70.40207268]
[1754481474797,0.7809,164.36,164.35,71.08207268]
[1754481477905,0.7809,164.36,164.35,70.40207268]
[1754481478603,0.7809,164.36,164.35,71.08207268]
[1754481479617,0.7809,164.36,164.35,113.30207268]
[1754481480786,0.7809,164.36,164.35,128.69261139]
[1754481483219,0.03,164.38,164.37,59.94578027]
[1754481483391,0.03,164.38,164.37,105.72659708]
[1754481483594,0.03,164.38,164.37,106.43659708]
[1754481485399,0.03,164.38,164.37,112.52043232]
[1754481487110,0.03,164.38,164.37,127.31097103]
[1754481489510,0.03,164.38,164.37,153.31097103]
[1754481492096,0.1,164.4,164.38,59.31578027]
[1754481492309,0.1,164.4,164.39,3.56081681]
[1754481492508,0.1,164.4,164.39,45.76081681]
[1754481492723,0.1,164.4,164.39,3.56081681]
[1754481493099,0.1,164.4,164.39,63.58659708]
[1754481494222,0.1,164.4,164.39,68.95969215]
[1754481495522,0.77,164.4,164.39,68.95969215]
[1754481496799,0.1,164.4,164.39,68.95969215]
[1754481497299,0.1,164.4,164.39,69.66969215]
[1754481497797,0.77,164.4,164.39,68.95969215]
[1754481500210,0.77,164.4,164.39,65.39887534]
[1754481501429,0.77,164.4,164.39,68.95969215]
[1754481507926,0.77,164.4,164.39,59.31578027]
[1754481519431,4.8692839,164.4,164.39,59.31578027]
[1754481525346,4.1992839,164.4,164.39,59.31578027]
[1754481526223,0.1,164.4,164.39,59.31578027]
[1754481526416,4.1992839,164.4,164.39,59.31578027]
[1754481526618,0.1,164.4,164.39,59.31578027]
[1754481527241,4.1992839,164.4,164.39,59.31578027]
[1754481527947,0.1,164.4,164.39,59.31578027]
[1754481530748,8.47010071,164.4,164.39,59.31578027]
[1754481534847,4.37081681,164.4,164.39,59.31578027]
[1754481535062,8.47286661,164.4,164.39,59.31578027]
[1754481539679,7.76286661,164.4,164.39,59.31578027]
[1754481541055,8.47286661,164.4,164.39,59.31578027]
[1754481543175,8.47286661,164.4,164.38,59.37578027]
[1754481543381,8.37286661,164.39,164.38,59.37578027]
[1754481543851,7.66286661,164.39,164.38,59.37578027]
[1754481547283,8.37286661,164.39,164.38,59.37578027]
[1754481548291,8.37286661,164.39,164.38,0.06]
[1754481551484,7.66286661,164.39,164.38,0.06]
[1754481553491,8.37286661,164.39,164.38,0.06]
[1754481560186,8.37286661,164.39,164.38,59.37578027]
[1754481564068,7.66286661,164.39,164.38,59.37578027]
[1754481565886,7.66793318,164.39,164.38,59.37578027]
[1754481567299,7.66793318,164.39,164.38,60.02578027]
[1754481568296,7.66793318,164.39,164.38,59.37578027]
[1754481570784,8.37793318,164.39,164.38,59.37578027]
[1754481572001,7.66793318,164.39,164.38,59.37578027]
[1754481572211,4.10711637,164.39,164.38,60.02578027]
[1754481572776,4.10711637,164.39,164.38,66.10924541]
[1754481573698,4.10711637,164.39,164.38,69.67006222]
[1754481574001,0.1,164.4,164.38,69.67006222]
[1754481574209,0.1,164.4,164.38,69.02006222]
[1754481574502,0.1,164.4,164.39,0.67]
[1754481574799,4.20737212,164.4,164.39,0.67]
[1754481576399,4.20737212,164.4,164.39,6.75309507]
[1754481577098,4.20737212,164.4,164.39,6.08309507]
[1754481577296,4.20737212,164.4,164.39,6.75309507]
[1754481577992,4.20737212,164.4,164.39,66.06887534]
[1754481578201,0.1,164.4,164.39,69.62969215]
[1754481578385,0.1,164.4,164.39,66.06887534]
[1754481581178,0.1,164.4,164.39,69.62969215]
[1754481585609,0.1,164.4,164.39,66.06887534]
[1754481588827,0.1,164.4,164.39,69.62969215]
[1754481592393,0.1,164.4,164.39,66.06887534]
[1754481592593,0.1,164.4,164.39,69.62969215]
[1754481593118,0.1,164.4,164.39,65.39887534]
[1754481594131,0.1,164.4,164.39,66.06887534]
[1754481597953,0.1,164.4,164.39,65.39887534]
[1754481601125,0.1,164.4,164.39,66.06887534]
[1754481602060,0.1,164.4,164.39,69.62969215]
[1754481603218,0.1,164.4,164.39,85.02023086]
[1754481603441,0.1,164.41,164.4,100.60631898]
[1754481603633,0.1,164.41,164.4,147.05713579]
[1754481603843,1e-08,164.41,164.4,120.95713579]
[1754481604428,0.1,164.42,164.41,21.18857065]
[1754481604429,1e-08,164.42,164.41,21.18857065]
[1754481604642,0.03,164.44,164.43,26.0]
[1754481604834,1e-08,164.44,164.43,146.57097417]
[1754481605035,1e-08,164.44,164.43,146.95713579]
[1754481605235,4.09620757,164.5,164.45,0.28432314]
[1754481605553,42.18,164.51,164.45,72.02513995]
[1754481605756,42.18,164.51,164.45,72.73513995]
[1754481606539,42.18,164.51,164.45,78.81601559]
[1754481606934,8.2553745,164.52,164.49,26.0]
[1754481607139,0.393,164.53,164.51,3.56081681]
[1754481607483,0.393,164.53,164.52,3.56081681]
[1754481607633,1.083,164.53,164.52,3.56081681]
[1754481607946,0.393,164.53,164.52,30.27081681]
[1754481608260,0.393,164.53,164.52,45.66135552]
[1754481608635,0.393,164.53,164.52,51.73964387]
[1754481608834,0.393,164.53,164.52,35.63910516]
[1754481609844,0.393,164.53,164.52,26.0]
[1754481610160,4.64381681,164.53,164.5,26.0]
[1754481610335,0.69,164.52,164.49,59.11578027]
[1754481610648,0.69,164.52,164.5,6.07902735]
[1754481611041,0.69,164.51,164.5,6.07902735]
[1754481611770,0.69,164.51,164.49,59.11578027]
[1754481613277,5.55133003,164.52,164.49,65.19502593]
[1754481613442,0.69,164.5,164.49,65.19502593]
[1754481613759,48.12433003,164.53,164.49,65.19502593]
[1754481613966,0.69,164.52,164.49,71.45635596]
[1754481614168,0.69,164.52,164.49,65.90502593]
[1754481614347,0.69,164.51,164.49,65.19502593]
[1754481614666,0.69,164.5,164.49,59.11578027]
[1754481614856,6.24133003,164.5,164.49,59.11578027]